fUST/lending_fUST_20240915
["ID","MTS","AMOUNT","RATE_DAILY","PERIOD"]
[338171264,1726339845792,-1090.697382,0.00021917,2]
[338171265,1726339845802,-500.0,0.00021917,2]
[338171266,1726339845812,-1090.697382,0.00021917,2]
[338171267,1726339845822,-500.0,0.00021917,2]
[338171269,1726339845833,-1090.697382,0.00021917,2]
[338171270,1726339845844,-1090.697382,0.00021917,2]
[338171271,1726339845855,-1090.697382,0.00021917,2]
[338171272,1726339845865,-1090.697382,0.00021917,2]
[338171273,1726339845874,-500.0,0.00021917,2]
[338171274,1726339845885,-1090.697382,0.00021917,2]
[338171275,1726339845904,-151.0,0.00021917,2]
[338171276,1726339845914,-1090.697382,0.00021917,2]
[338171277,1726339845923,-1090.697373,0.00021917,2]
[338171278,1726339845933,-151.0,0.00021917,2]
[338171279,1726339845945,-151.0,0.00021917,2]
[338171280,1726339845956,-500.0,0.00021917,2]
[338171281,1726339845968,-500.0,0.00021917,2]
[338171282,1726339845978,-151.0,0.00021917,2]
[338171283,1726339845989,-151.0,0.00021917,2]
[338171285,1726339845999,-500.0,0.00021917,2]
[338171287,1726339846010,-500.0,0.00021917,2]
[338171288,1726339846020,-500.0,0.00021917,2]
[338171289,1726339846031,-500.0,0.00021917,2]
[338171290,1726339846040,-500.0,0.00021917,2]
[338171291,1726339846052,-1055.04,0.00021917,2]
[338171292,1726339846062,-500.0,0.00021917,2]
[338171293,1726339846073,-503.21930254,0.00021917,2]
[338171294,1726339846083,-500.0,0.00021917,2]
[338171295,1726339846094,-539.97436307,0.00021917,2]
[338171296,1726339846104,-1277.212235,0.00021917,2]
[338171297,1726339846114,-500.0,0.00021917,2]
[338171298,1726339846124,-500.0,0.00021917,2]
[338171299,1726339846134,-1277.212235,0.00021917,2]
[338171300,1726339846146,-500.0,0.00021917,2]
[338171301,1726339846157,-500.0,0.00021917,2]
[338171302,1726339846167,-1277.212235,0.00021917,2]
[338171303,1726339846179,-1277.212235,0.00021917,2]
[338171304,1726339846188,-500.0,0.00021917,2]
[338171305,1726339846199,-500.0,0.00021917,2]
[338171306,1726339846209,-1277.212235,0.00021917,2]
[338171307,1726339846221,-1277.212235,0.00021917,2]
[338171308,1726339846230,-1277.212235,0.00021917,2]
[338171309,1726339846240,-1277.212235,0.00021917,2]
[338171310,1726339846250,-1277.212235,0.00021917,2]
[338171311,1726339846260,-1277.212235,0.00021917,2]
[338171312,1726339846271,-1277.212235,0.00021917,2]
[338171313,1726339846281,-500.0,0.00021917,2]
[338171314,1726339846292,-1277.212235,0.00021917,2]
[338171315,1726339846304,-1277.212235,0.00021917,2]
[338171316,1726339846313,-500.0,0.00021917,2]
[338171317,1726339846323,-500.0,0.00021917,2]
[338171318,1726339846334,-1277.212235,0.00021917,2]
[338171319,1726339846343,-296.0853423,0.00021917,2]
[338171320,1726339846354,-500.0,0.00021917,2]
[338171321,1726339846364,-1277.212235,0.00021917,2]
[338171322,1726339846374,-1920.04,0.00021917,2]
[338171323,1726339846383,-1277.212242,0.00021917,2]
[338171324,1726339846394,-500.0,0.00021917,2]
[338171325,1726339846405,-500.0,0.00021917,2]
[338171326,1726339846417,-500.0,0.00021917,2]
[338171327,1726339846426,-67156.32,0.00021917,2]
[338171328,1726339846436,-17235.99,0.00021917,2]
[338171329,1726339846448,-500.0,0.00021917,2]
[338171331,1726339846459,-401.08321471,0.00021917,2]
[338171332,1726339846469,-500.0,0.00021917,2]
[338171333,1726339846479,-500.0,0.00021917,2]
[338171334,1726339846490,-445.9356843,0.00021917,2]
[338171335,1726339846499,-500.0,0.00021917,2]
[338171336,1726339846509,-889.73,0.00021917,2]
[338171337,1726339846519,-500.0,0.00021917,2]
[338171338,1726339846529,-255.20676238,0.00021917,2]
[338171339,1726339846539,-500.0,0.00021917,2]
[338171340,1726339846549,-500.0,0.00021917,2]
[338171341,1726339846559,-204.136783,0.00021917,2]
[338171342,1726339846570,-204.136783,0.00021917,2]
[338171343,1726339846580,-204.136783,0.00021917,2]
[338171344,1726339846590,-204.136783,0.00021917,2]
[338171345,1726339846599,-204.136783,0.00021917,2]
[338171346,1726339846608,-204.136783,0.00021917,2]
[338171347,1726339846618,-500.99899339,0.00021917,2]
[338171348,1726339846628,-204.136783,0.00021917,2]
[338171349,1726339846639,-204.136783,0.00021917,2]
[338171350,1726339846650,-3995.54,0.00021917,2]
[338171351,1726339846660,-204.136783,0.00021917,2]
[338171352,1726339846669,-500.0,0.00021917,2]
[338171353,1726339846678,-204.136783,0.00021917,2]
[338171354,1726339846688,-204.136783,0.00021917,2]
[338171355,1726339846699,-500.0,0.00021917,2]
[338171356,1726339846710,-151.0,0.00021917,2]
[338171357,1726339846721,-204.136783,0.00021917,2]
[338171358,1726339846731,-500.0,0.00021917,2]
[338171359,1726339846740,-151.0,0.00021917,2]
[338171360,1726339846750,-204.136783,0.00021917,2]
[338171361,1726339846761,-151.0,0.00021917,2]
[338171362,1726339846771,-500.0,0.00021917,2]
[338171363,1726339846783,-500.0,0.00021917,2]
[338171364,1726339846794,-204.136783,0.00021917,2]
[338171365,1726339846804,-151.0,0.00021917,2]
[338171366,1726339846814,-204.136783,0.00021917,2]
[338171367,1726339846823,-151.0,0.00021917,2]
[338171368,1726339846833,-204.136783,0.00021917,2]
[338171369,1726339846842,-151.0,0.00021917,2]
[338171370,1726339846852,-204.136783,0.00021917,2]
[338171371,1726339846861,-151.0,0.00021917,2]
[338171372,1726339846871,-151.0,0.00021917,2]
[338171373,1726339846881,-204.136783,0.00021917,2]
[338171374,1726339846891,-204.136783,0.00021917,2]
[338171375,1726339846900,-270.804242,0.00021917,2]
[338171376,1726339846911,-500.0,0.00021917,2]
[338171377,1726339846921,-204.136783,0.00021917,2]
[338171378,1726339846930,-500.0,0.00021917,2]
[338171379,1726339846940,-226.08633758,0.00021917,2]
[338171380,1726339846950,-19759.78,0.00021917,2]
[338171381,1726339846959,-500.0,0.00021917,2]
[338171382,1726339846969,-500.0,0.00021917,2]
[338171383,1726339846978,-500.0,0.00021917,2]
[338171384,1726339846988,-500.0,0.00021917,2]
[338171385,1726339846997,-500.0,0.00021917,2]
[338171386,1726339847006,-500.0,0.00021917,2]
[338171387,1726339847017,-500.30966426,0.00021917,2]
[338171388,1726339847027,-500.0,0.00021917,2]
[338171389,1726339847036,-2679.72,0.00021917,2]
[338171390,1726339847045,-500.0,0.00021917,2]
[338171391,1726339847054,-501.47836458,0.00021917,2]
[338171392,1726339847064,-500.0,0.00021917,2]
[338171393,1726339847074,-502.40963376,0.00021917,2]
[338171394,1726339847083,-540.24,0.00021917,2]
[338171395,1726339847093,-500.0,0.00021917,2]
[338171396,1726339847103,-500.0,0.00021917,2]
[338171397,1726339847113,-242.62,0.00021917,2]
[338171398,1726339847123,-1166.33,0.00021917,2]
[338171399,1726339847132,-500.0,0.00021917,2]
[338171400,1726339847142,-500.0,0.00021917,2]
[338171401,1726339847151,-500.0,0.00021917,2]
[338171402,1726339847161,-4000.0,0.00021917,2]
[338171403,1726339847171,-3155.62,0.00021917,2]
[338171404,1726339847181,-4000.0,0.00021917,2]
[338171405,1726339847190,-539.49,0.00021917,2]
[338171406,1726339847200,-4000.0,0.00021917,2]
[338171407,1726339847209,-500.0,0.00021917,2]
[338171408,1726339847219,-1615.322801,0.00021917,2]
[338171409,1726339847228,-1686.16,0.00021917,2]
[338171410,1726339847237,-500.0,0.00021917,2]
[338171411,1726339847246,-151.0,0.00021917,2]
[338171412,1726339847256,-933.84,0.00021917,2]
[338171413,1726339847266,-2647.82,0.00021917,2]
[338171414,1726339847276,-500.0,0.00021917,2]
[338171415,1726339847286,-841.15,0.00021917,2]
[338171416,1726339847296,-500.0,0.00021917,2]
[338171417,1726339847305,-674.35,0.00021917,2]
[338171418,1726339847315,-1664.7,0.00021917,2]
[338171419,1726339847324,-1854.82,0.00021917,2]
[338171420,1726339847334,-500.0,0.00021917,2]
[338171421,1726339847344,-500.0,0.00021917,2]
[338171422,1726339847353,-500.0,0.00021917,2]
[338171423,1726339847364,-1000.0,0.00021917,2]
[338171424,1726339847375,-6146.68,0.00021917,2]
[338171425,1726339847386,-500.0,0.00021917,2]
[338171426,1726339847396,-9328.16,0.00021917,2]
[338171427,1726339847406,-151.0,0.00021917,2]
[338171428,1726339847417,-151.0,0.00021917,2]
[338171429,1726339847426,-500.0,0.00021917,2]
[338171430,1726339847436,-500.0,0.00021917,2]
[338171431,1726339847447,-151.0,0.00021917,2]
[338171432,1726339847456,-151.0,0.00021917,2]
[338171433,1726339847466,-781.26,0.00021917,2]
[338171434,1726339847475,-500.0,0.00021917,2]
[338171435,1726339847484,-151.0,0.00021917,2]
[338171436,1726339847494,-151.0,0.00021917,2]
[338171437,1726339847503,-500.0,0.00021917,2]
[338171438,1726339847512,-151.0,0.00021917,2]
[338171439,1726339847521,-1862.11,0.00021917,2]
[338171440,1726339847530,-151.0,0.00021917,2]
[338171441,1726339847539,-151.0,0.00021917,2]
[338171442,1726339847549,-151.0,0.00021917,2]
[338171443,1726339847558,-151.0,0.00021917,2]
[338171444,1726339847568,-151.0,0.00021917,2]
[338171445,1726339847578,-151.0,0.00021917,2]
[338171446,1726339847588,-500.0,0.00021917,2]
[338171447,1726339847597,-151.0,0.00021917,2]
[338171448,1726339847607,-500.0,0.00021917,2]
[338171449,1726339847617,-226.764614,0.00021917,2]
[338171450,1726339847627,-25.89141558,0.00021917,2]
[338171451,1726339848195,-243.92085342,0.00021915,2]
[338171452,1726339848205,-4424.52099869,0.00021915,2]
[338171453,1726339848216,-670.24779425,0.00021915,2]
[338171454,1726339848232,-795.75037071,0.00021915,2]
[338171455,1726339848242,-474.10858442,0.00021917,2]
[338171456,1726339848252,-500.0,0.00021917,2]
[338171457,1726339848262,-151.0,0.00021917,2]
[338171458,1726339848272,-151.0,0.00021917,2]
[338171459,1726339848281,-151.50323,0.00021917,2]
[338171460,1726339848291,-500.0,0.00021917,2]
[338171461,1726339848301,-511.34,0.00021917,2]
[338171462,1726339848311,-500.0,0.00021917,2]
[338171463,1726339848321,-1466.84,0.00021917,2]
[338171464,1726339848331,-500.0,0.00021917,2]
[338171465,1726339848341,-2949.92,0.00021917,2]
[338171466,1726339848350,-580.8771972,0.00021917,2]
[338171467,1726339848360,-500.0,0.00021917,2]
[338171468,1726339848373,-500.0,0.00021917,2]
[338171469,1726339848382,-151.0,0.00021917,2]
[338171470,1726339848393,-500.0,0.00021917,2]
[338171471,1726339848402,-151.0,0.00021917,2]
[338171472,1726339848413,-500.0,0.00021917,2]
[338171473,1726339848423,-151.0,0.00021917,2]
[338171474,1726339848432,-151.0,0.00021917,2]
[338171475,1726339848443,-151.0,0.00021917,2]
[338171476,1726339848453,-4041.0,0.00021917,2]
[338171477,1726339848464,-151.0,0.00021917,2]
[338171478,1726339848474,-151.0,0.00021917,2]
[338171479,1726339848483,-151.0,0.00021917,2]
[338171480,1726339848493,-1694.99,0.00021917,2]
[338171481,1726339848502,-151.0,0.00021917,2]
[338171482,1726339848512,-151.0,0.00021917,2]
[338171483,1726339848522,-151.0,0.00021917,2]
[338171484,1726339848532,-151.0,0.00021917,2]
[338171485,1726339848541,-151.0,0.00021917,2]
[338171486,1726339848551,-500.0,0.00021917,2]
[338171487,1726339848560,-247.47763,0.00021917,2]
[338171488,1726339848569,-500.0,0.00021917,2]
[338171489,1726339848578,-500.0,0.00021917,2]
[338171490,1726339848589,-665.75,0.00021917,2]
[338171491,1726339848598,-2372.86,0.00021917,2]
[338171492,1726339848610,-1151.48,0.00021917,2]
[338171493,1726339848620,-500.0,0.00021917,2]
[338171494,1726339848630,-500.0,0.00021917,2]
[338171495,1726339848639,-520.61,0.00021917,2]
[338171496,1726339848648,-559.62047057,0.00021917,2]
[338171497,1726339848659,-500.0,0.00021917,2]
[338171498,1726339848668,-1353.99,0.00021917,2]
[338171499,1726339848677,-1439.99,0.00021917,2]
[338171500,1726339848687,-500.0,0.00021917,2]
[338171501,1726339848697,-500.0,0.00021917,2]
[338171502,1726339848868,-1707.87,0.00021917,2]
[338171503,1726339848885,-332.70163726,0.00021917,2]
[338171504,1726339848896,-500.0,0.00021917,2]
[338171505,1726339848906,-500.0,0.00021917,2]
[338171506,1726339848916,-500.0,0.00021917,2]
[338171507,1726339848925,-500.0,0.00021917,2]
[338171508,1726339848935,-500.0,0.00021917,2]
[338171509,1726339848945,-510.24668391,0.00021917,2]
[338171510,1726339848954,-576.41,0.00021917,2]
[338171511,1726339848964,-2378.74,0.00021917,2]
[338171512,1726339848974,-1348.42,0.00021917,2]
[338171513,1726339848985,-500.0,0.00021917,2]
[338171514,1726339848994,-12368.40885585,0.00021917,2]
[338171515,1726339849419,-11914.603867,0.00021917,2]
[338171516,1726339849431,-16484.34727715,0.00021917,2]
[338171517,1726339849441,-500.0,0.00021917,2]
[338171518,1726339849452,-500.0,0.00021917,2]
[338171519,1726339849462,-500.0,0.00021917,2]
[338171520,1726339849471,-1157.2,0.00021917,2]
[338171521,1726339849480,-500.0,0.00021917,2]
[338171522,1726339849490,-500.0,0.00021917,2]
[338171523,1726339849499,-5952.09222,0.00021917,2]
[338171524,1726339849510,-151.0,0.00021917,2]
[338171525,1726339849521,-5952.09222,0.00021917,2]
[338171526,1726339849531,-5952.09222,0.00021917,2]
[338171527,1726339849542,-151.0,0.00021917,2]
[338171528,1726339849553,-500.0,0.00021917,2]
[338171529,1726339849563,-1570.02317882,0.00021917,2]
[338171530,1726339850077,-334.0510005,0.00021917,2]
[338171531,1726339850088,-4048.01804068,0.00021917,2]
[338171532,1726339850098,-151.0,0.00021917,2]
[338171533,1726339850107,-2982.21195932,0.00021917,2]
[338171534,1726339850887,-2969.88026068,0.00021917,2]
[338171535,1726339850899,-151.0,0.00021917,2]
[338171536,1726339850909,-5952.09222,0.00021917,2]
[338171537,1726339850920,-151.0,0.00021917,2]
[338171538,1726339850929,-1822.28191869,0.00021917,2]
[338171539,1726339850945,-4129.81030131,0.00021917,2]
[338171540,1726339850955,-151.0,0.00021917,2]
[338171541,1726339850966,-226.974859,0.00021917,2]
[338171542,1726339850978,-5952.09222,0.00021917,2]
[338171543,1726339850989,-5952.09222,0.00021917,2]
[338171544,1726339851001,-5952.09222,0.00021917,2]
[338171545,1726339851011,-151.0,0.00021917,2]
[338171546,1726339851022,-5952.09222,0.00021917,2]
[338171547,1726339851032,-151.0,0.00021917,2]
[338171548,1726339851043,-5952.09222,0.00021917,2]
[338171549,1726339851053,-2680.98,0.00021917,2]
[338171550,1726339851063,-151.0,0.00021917,2]
[338171551,1726339851075,-5952.09222,0.00021917,2]
[338171552,1726339851086,-151.0,0.00021917,2]
[338171553,1726339851096,-5952.09222,0.00021917,2]
[338171554,1726339851108,-151.0,0.00021917,2]
[338171555,1726339851118,-151.0,0.00021917,2]
[338171556,1726339851128,-5952.09222,0.00021917,2]
[338171557,1726339851140,-151.0,0.00021917,2]
[338171558,1726339851151,-3629.63207452,0.00021917,2]
[338171559,1726339851940,-2322.46014548,0.00021917,2]
[338171560,1726339851951,-151.0,0.00021917,2]
[338171561,1726339851962,-5952.09222,0.00021917,2]
[338171562,1726339851971,-151.0,0.00021917,2]
[338171563,1726339851980,-500.0,0.00021917,2]
[338171564,1726339851990,-500.0,0.00021917,2]
[338171565,1726339851999,-151.0,0.00021917,2]
[338171566,1726339852007,-199.026567,0.00021917,2]
[338171567,1726339852016,-5952.09222,0.00021917,2]
[338171568,1726339852025,-782.34,0.00021917,2]
[338171569,1726339852035,-5952.09222,0.00021917,2]
[338171570,1726339852044,-5952.092228,0.00021917,2]
[338171571,1726339852053,-500.91,0.00021917,2]
[338171572,1726339852065,-274.91316784,0.00021917,2]
[338171573,1726339852077,-381.92818453,0.00021917,2]
[338171574,1726339852147,-820.65864763,0.00021917,2]
[338171575,1726339852303,-1217.79722337,0.00021917,2]
[338171580,1726340244195,298.469859,0.00013699,2]
[338171581,1726340403682,174.52995631,0.0001,2]
[338171584,1726340927845,299.111125,0.00013699,2]
[338171641,1726341032484,-200.0,0.0002,20]
[338171643,1726341032496,-400.0,0.0002,20]
[338171645,1726341032505,-400.0,0.0002,7]
[338171647,1726341032514,-200.0,0.0002,7]
[338171649,1726341032523,-299.111125,0.00020187,2]
[338171651,1726341032533,-161.47471,0.00020643,2]
[338171653,1726341032542,-300.0,0.00020684,2]
[338171654,1726341032551,-300.0,0.00020684,2]
[338171656,1726341032561,-556.727,0.00020685,2]
[338171658,1726341032571,-151.691,0.00020685,2]
[338171659,1726341032580,-1104.62656762,0.000209,2]
[338171661,1726341032589,-150.0,0.00021,2]
[338171663,1726341032598,-1000.0,0.00021,21]
[338171678,1726341032936,-18096.10342538,0.00021055,2]
[338171681,1726341032959,-16480.8,0.00021055,2]
[338171684,1726341032990,-2473.50590784,0.00021055,2]
[338171729,1726341038579,-503.36927005,0.00021055,2]
[338171732,1726341038591,-642.29571818,0.00021055,2]
[338171790,1726341040619,-12323.92367855,0.00021055,2]
[338171791,1726341040628,-1104.6265676,0.00021657,2]
[338171792,1726341040638,-26941.29686982,0.00021767,3]
[338171793,1726341040650,-1126.59256974,0.00021767,3]
[338171819,1726341043897,-45624.10402544,0.00021767,3]
[338171820,1726341043906,-13868.03096939,0.00021777,3]
[338171823,1726341440265,269.200012,0.00013699,2]
[338171828,1726341943120,271.76004,0.00013699,2]
[338171862,1726342153145,-300.0,0.00018779,2]
[338171863,1726342153183,-300.0,0.00018779,2]
[338171864,1726342153218,-386.82215666,0.0001878,2]
[338171866,1726342160116,-29833.61121843,0.0001878,2]
[338171867,1726342169144,-8214.50361709,0.0001878,5]
[338171868,1726342169171,-197616.30608351,0.0001878,2]
[338171893,1726342232658,-283.43650347,0.00018779,2]
[338171894,1726342232670,-16.56349653,0.00018779,2]
[338171895,1726342232679,-22043.19828901,0.0001878,2]
[338171896,1726342232691,-382.91512159,0.0001878,2]
[338171924,1726342240736,-17526.20284545,0.0001878,2]
[338171926,1726342240750,-16795.99031659,0.0001878,2]
[338171929,1726342240763,-1657.37973848,0.0001878,2]
[338171965,1726342244047,-1089.90692529,0.0001878,2]
[338171966,1726342244060,-1150.23061612,0.0001878,2]
[338171967,1726342244088,-546.96432288,0.0001878,2]
[338171968,1726342244104,-60585.87881299,0.0001878,2]
[338171969,1726342244114,-500.0,0.00018789,2]
[338171970,1726342244124,-355.38677287,0.00018789,2]
[338171971,1726342244134,-500.0,0.00018789,2]
[338171972,1726342244143,-235.22603002,0.00018789,2]
[338171973,1726342244154,-500.0,0.00018789,2]
[338171974,1726342244164,-500.0,0.00018789,2]
[338171975,1726342244174,-500.0,0.00018789,2]
[338171976,1726342244184,-500.0,0.00018789,2]
[338171977,1726342244194,-500.0,0.00018789,2]
[338171978,1726342244204,-500.0,0.00018789,2]
[338171979,1726342244213,-395.71009326,0.00018789,2]
[338171980,1726342244223,-500.0,0.00018789,2]
[338171981,1726342244232,-363.1586104,0.00018789,2]
[338171982,1726342244242,-500.0,0.00018789,2]
[338171983,1726342244251,-500.0,0.00018789,2]
[338171984,1726342244260,-500.0,0.00018789,2]
[338171985,1726342244272,-500.0,0.00018789,2]
[338171986,1726342244281,-500.0,0.00018789,2]
[338171987,1726342244292,-500.0,0.00018789,2]
[338171988,1726342244301,-236.37953174,0.00018789,2]
[338171989,1726342244311,-384.25815579,0.00018789,2]
[338171990,1726342244321,-500.0,0.00018789,2]
[338171991,1726342244331,-500.0,0.00018789,2]
[338171992,1726342244342,-451.53071619,0.00018789,2]
[338171993,1726342244352,-500.0,0.00018789,2]
[338171994,1726342244363,-500.0,0.00018789,2]
[338171995,1726342244372,-500.0,0.00018789,2]
[338171996,1726342244383,-500.0,0.00018789,2]
[338171997,1726342244393,-500.0,0.00018789,2]
[338171998,1726342244403,-500.0,0.00018789,2]
[338171999,1726342244413,-500.0,0.00018789,2]
[338172000,1726342244424,-30396.01160969,0.0001879,5]
[338172001,1726342244435,-4107.25180854,0.0001879,5]
[338172002,1726342244444,-327473.493444,0.0001879,2]
[338172003,1726342244454,-69923.0812893,0.0001879,2]
[338172004,1726342244463,-510909.90652821,0.000188,2]
[338172005,1726342244473,-161.47471,0.00019178,2]
[338172006,1726342244482,-731.52874989,0.00019987,2]
[338172007,1726342244492,-309.87468738,0.00020087,2]
[338172008,1726342244501,-192.74717288,0.00020087,2]
[338172009,1726342244511,-164.113666,0.00020131,2]
[338172010,1726342244522,-271.76004,0.00020187,2]
[338172011,1726342244533,-420.0,0.00020474,2]
[338172012,1726342244543,-171.575709,0.00020673,2]
[338172013,1726342244553,-171.575709,0.00020942,2]
[338172014,1726342244562,-1000.0,0.00021,21]
[338172015,1726342244572,-171.575709,0.00021212,2]
[338172016,1726342244582,-5461.94764664,0.0002139,2]
[338172017,1726342244591,-1373.94947823,0.00021456,2]
[338172018,1726342244601,-171.575709,0.00021481,2]
[338172019,1726342244610,-153.0,0.00021644,2]
[338172020,1726342244620,-171.575709,0.0002175,2]
[338172021,1726342244631,-1000.0,0.00021806,2]
[338172022,1726342244640,-973.43098244,0.0002184,2]
[338172023,1726342244650,-524.0,0.0002185,2]
[338172024,1726342244660,-150.0,0.0002185,2]
[338172025,1726342244670,-54367.28142232,0.0002188,2]
[338172026,1726342244680,-301.356,0.00021896,2]
[338172027,1726342244690,-184.5,0.000219,2]
[338172028,1726342244699,-508.0,0.000219,2]
[338172029,1726342244709,-151.0,0.00021907,2]
[338172030,1726342244718,-250.170873,0.00021907,2]
[338172031,1726342244728,-439.337372,0.00021907,2]
[338172032,1726342244737,-439.337372,0.00021907,2]
[338172033,1726342244747,-269.164876,0.00021907,2]
[338172034,1726342244757,-269.164876,0.00021907,2]
[338172035,1726342244766,-2945.25958183,0.00021916,2]
[338172036,1726342244776,-160.0,0.00021916,2]
[338172037,1726342244787,-500.0,0.00021917,2]
[338172038,1726342244796,-500.0,0.00021917,2]
[338172039,1726342244805,-500.0,0.00021917,2]
[338172040,1726342244814,-500.0,0.00021917,2]
[338172041,1726342244824,-328.21007339,0.00021917,2]
[338172042,1726342244834,-500.0,0.00021917,2]
[338172043,1726342244843,-357.05192,0.00021917,2]
[338172044,1726342244853,-151.0,0.00021917,2]
[338172045,1726342244863,-151.0,0.00021917,2]
[338172046,1726342244872,-500.0,0.00021917,2]
[338172047,1726342244882,-563.27,0.00021917,2]
[338172048,1726342244892,-500.0,0.00021917,2]
[338172049,1726342244902,-500.0,0.00021917,2]
[338172050,1726342244911,-500.0,0.00021917,2]
[338172051,1726342244921,-500.0,0.00021917,2]
[338172052,1726342244931,-518.02,0.00021917,2]
[338172053,1726342244941,-151.0,0.00021917,2]
[338172054,1726342244951,-500.0,0.00021917,2]
[338172055,1726342244961,-500.0,0.00021917,2]
[338172056,1726342244971,-500.0,0.00021917,2]
[338172057,1726342244980,-500.0,0.00021917,2]
[338172058,1726342244990,-501.91094958,0.00021917,2]
[338172059,1726342245000,-500.0,0.00021917,2]
[338172060,1726342245010,-560.42,0.00021917,2]
[338172061,1726342245020,-500.0,0.00021917,2]
[338172062,1726342245030,-500.0,0.00021917,2]
[338172063,1726342245040,-500.0,0.00021917,2]
[338172064,1726342245051,-500.0,0.00021917,2]
[338172065,1726342245060,-500.0,0.00021917,2]
[338172066,1726342245070,-500.0,0.00021917,2]
[338172067,1726342245080,-500.0,0.00021917,2]
[338172068,1726342245090,-500.0,0.00021917,2]
[338172069,1726342245100,-500.0,0.00021917,2]
[338172070,1726342245111,-500.0,0.00021917,2]
[338172071,1726342245121,-500.0,0.00021917,2]
[338172072,1726342245131,-500.0,0.00021917,2]
[338172073,1726342245141,-500.0,0.00021917,2]
[338172074,1726342245151,-500.0,0.00021917,2]
[338172075,1726342245161,-504.05805289,0.00021917,2]
[338172076,1726342245171,-500.0,0.00021917,2]
[338172077,1726342245182,-500.0,0.00021917,2]
[338172078,1726342245191,-500.0,0.00021917,2]
[338172079,1726342245201,-500.0,0.00021917,2]
[338172080,1726342245211,-500.0,0.00021917,2]
[338172081,1726342245221,-500.0,0.00021917,2]
[338172082,1726342245230,-500.0,0.00021917,2]
[338172083,1726342245240,-574.4,0.00021917,2]
[338172084,1726342245249,-500.0,0.00021917,2]
[338172085,1726342245260,-151.0,0.00021917,2]
[338172086,1726342245271,-500.0,0.00021917,2]
[338172087,1726342245282,-500.0,0.00021917,2]
[338172088,1726342245291,-500.0,0.00021917,2]
[338172089,1726342245300,-500.0,0.00021917,2]
[338172090,1726342245310,-500.0,0.00021917,2]
[338172091,1726342245320,-500.0,0.00021917,2]
[338172092,1726342245330,-560.99,0.00021917,2]
[338172093,1726342245340,-502.90676707,0.00021917,2]
[338172094,1726342245350,-530.28,0.00021917,2]
[338172095,1726342245360,-500.0,0.00021917,2]
[338172096,1726342245370,-500.0,0.00021917,2]
[338172097,1726342245380,-500.0,0.00021917,2]
[338172098,1726342245391,-500.0,0.00021917,2]
[338172099,1726342245400,-500.0,0.00021917,2]
[338172100,1726342245410,-500.0,0.00021917,2]
[338172101,1726342245419,-599.62,0.00021917,2]
[338172102,1726342245429,-500.0,0.00021917,2]
[338172103,1726342245439,-500.0,0.00021917,2]
[338172104,1726342245448,-151.0,0.00021917,2]
[338172105,1726342245664,-151.0,0.00021917,2]
[338172106,1726342245674,-500.0,0.00021917,2]
[338172107,1726342245683,-500.0,0.00021917,2]
[338172108,1726342245693,-500.0,0.00021917,2]
[338172109,1726342245703,-500.0,0.00021917,2]
[338172110,1726342245712,-500.0,0.00021917,2]
[338172111,1726342245722,-500.0,0.00021917,2]
[338172112,1726342245731,-500.0,0.00021917,2]
[338172113,1726342245741,-500.0,0.00021917,2]
[338172114,1726342245751,-500.0,0.00021917,2]